[Event "Titled Tuesday Blitz June 8 2021"]
[White "Indjic, Aleksandar"]
[Black "Rosen, Eric"]
[WhiteFideId "911925"]
[BlackFideId "2032562"]
[WhiteElo "2643"]
[BlackElo "2362"]
[Result "1-0"]
[Round "10"]
[TimeControl "180+1"]
[Date "2021.06.08"]
[WhiteClock "0:01:09"]
[BlackClock "0:00:06"]

1. d4 {[%clk 0:03:00]}  d6 {[%clk 0:00:17]} 2. e4 {[%clk 0:02:56]}  Nf6 {[%clk 0:00:15]} 3. Nc3 {[%clk 0:02:56]}  g6 {[%clk 0:00:16]} 4. Be2 {[%clk 0:02:55]}  Bg7 {[%clk 0:00:16]} 5. g4 {[%clk 0:02:56]}  c6 {[%clk 0:00:16]} 6. Be3 {[%clk 0:02:47]}  b5 {[%clk 0:00:17]} 7. g5 {[%clk 0:02:46]}  Nfd7 {[%clk 0:00:17]} 8. Bf3 {[%clk 0:02:39]}  Bb7 {[%clk 0:00:17]} 9. h4 {[%clk 0:02:37]}  Qc7 {[%clk 0:00:16]} 10. h5 {[%clk 0:02:37]}  a5 {[%clk 0:00:16]} 11. Nce2 {[%clk 0:02:35]}  Nb6 {[%clk 0:00:15]} 12. b3 {[%clk 0:02:34]}  N8d7 {[%clk 0:00:15]} 13. Rc1 {[%clk 0:02:30]}  e5 {[%clk 0:00:15]} 14. Qd2 {[%clk 0:02:21]}  O-O {[%clk 0:00:14]} 15. Bg2 {[%clk 0:02:13]}  a4 {[%clk 0:00:14]} 16. Nf3 {[%clk 0:02:11]}  axb3 {[%clk 0:00:14]} 17. cxb3 {[%clk 0:02:11]}  Rae8 {[%clk 0:00:14]} 18. Ng3 {[%clk 0:02:10]}  Qb8 {[%clk 0:00:14]} 19. O-O {[%clk 0:02:07]}  f5 {[%clk 0:00:11]} 20. gxf6 {[%clk 0:01:57]}  Bxf6 {[%clk 0:00:11]} 21. Rfd1 {[%clk 0:01:52]}  Re7 {[%clk 0:00:09]} 22. dxe5 {[%clk 0:01:43]}  Bxe5 {[%clk 0:00:05]} 23. Nxe5 {[%clk 0:01:37]}  dxe5 {[%clk 0:00:03]} 24. Qa5 {[%clk 0:01:36]}  c5 {[%clk 0:00:03]} 25. Qxb5 {[%clk 0:01:34]}  Nc8 {[%clk 0:00:01]} 26. Rxd7 {[%clk 0:01:32]}  Na7 {[%clk 0:00:02]} 27. Qxb7 {[%clk 0:01:27]}  Qxb7 {[%clk 0:00:03]} 28. Rxb7 {[%clk 0:01:27]}  Rxb7 {[%clk 0:00:04]} 29. Rxc5 {[%clk 0:01:27]}  Nb5 {[%clk 0:00:03]} 30. Rxe5 {[%clk 0:01:24]}  Nc3 {[%clk 0:00:03]} 31. Ra5 {[%clk 0:01:21]}  Re7 {[%clk 0:00:02]} 32. h6 {[%clk 0:01:20]}  Rfe8 {[%clk 0:00:02]} 33. a4 {[%clk 0:01:18]}  Rb8 {[%clk 0:00:02]} 34. Bf1 {[%clk 0:01:18]}  Rbb7 {[%clk 0:00:02]} 35. Bc4+ {[%clk 0:01:18]}  Kf8 {[%clk 0:00:02]} 36. Bc5 {[%clk 0:01:18]}  Ke8 {[%clk 0:00:02]} 37. Bxe7 {[%clk 0:01:13]}  Kxe7 {[%clk 0:00:03]} 38. e5 {[%clk 0:01:13]}  Na2 {[%clk 0:00:02]} 39. Ne4 {[%clk 0:01:10]}  Nb4 {[%clk 0:00:02]} 40. Rb5 {[%clk 0:01:11]}  Rxb5 {[%clk 0:00:02]} 41. axb5 {[%clk 0:01:11]}  g5 {[%clk 0:00:01]} 42. Nxg5 {[%clk 0:01:10]}  Kd7 {[%clk 0:00:01]} 43. Nxh7 {[%clk 0:01:10]}  Kc7 {[%clk 0:00:02]} 44. Nf6 {[%clk 0:01:10]}  Kb6 {[%clk 0:00:03]} 45. h7 {[%clk 0:01:10]}  Kc5 {[%clk 0:00:03]} 46. h8=Q {[%clk 0:01:10]}  Nc2 {[%clk 0:00:04]} 47. Qf8+ {[%clk 0:01:09]}  Kd4 {[%clk 0:00:04]} 48. Qd6+ {[%clk 0:01:09]}  Kc3 {[%clk 0:00:05]} 49. Qd3+ {[%clk 0:01:09]}  Kb2 {[%clk 0:00:05]} 50. Qd2 {[%clk 0:01:09]}  Kb1 {[%clk 0:00:06]} 51. Bd3 {[%clk 0:01:09]}  Ka1 {[%clk 0:00:06]} 52. Qc3+ {[%clk 0:01:09]}  Ka2 {[%clk 0:00:05]} 53. Qxc2+ {[%clk 0:01:09]}  Ka3 {[%clk 0:00:06]} 54. Qc5+ {[%clk 0:01:09]} 1-0


[Site "https://www.chess.com"]

[Event "Titled Tuesday Blitz June 8 2021"]
[White "Ivic, Velimir"]
[Black "Yanchenko, Roman"]
[WhiteFideId "950122"]
[BlackFideId "4137329"]
[WhiteElo "2509"]
[BlackElo "2514"]
[Result "0-1"]
[Round "10"]
[TimeControl "180+1"]
[Date "2021.06.08"]
[WhiteClock "0:00:02"]
[BlackClock "0:00:34"]

1. e4 {[%clk 0:03:00]}  e6 {[%clk 0:03:00]} 2. d4 {[%clk 0:02:59]}  d5 {[%clk 0:03:00]} 3. Nc3 {[%clk 0:02:59]}  Bb4 {[%clk 0:03:00]} 4. e5 {[%clk 0:02:59]}  Ne7 {[%clk 0:03:00]} 5. a3 {[%clk 0:02:58]}  Bxc3+ {[%clk 0:03:01]} 6. bxc3 {[%clk 0:02:59]}  b6 {[%clk 0:03:02]} 7. h4 {[%clk 0:02:56]}  Ba6 {[%clk 0:03:01]} 8. Bxa6 {[%clk 0:02:52]}  Nxa6 {[%clk 0:03:02]} 9. Qd3 {[%clk 0:02:44]}  Nb8 {[%clk 0:03:02]} 10. h5 {[%clk 0:02:45]}  h6 {[%clk 0:03:02]} 11. a4 {[%clk 0:02:44]}  c5 {[%clk 0:03:02]} 12. a5 {[%clk 0:02:42]}  Nbc6 {[%clk 0:03:00]} 13. axb6 {[%clk 0:02:01]}  axb6 {[%clk 0:03:00]} 14. Rb1 {[%clk 0:01:57]}  O-O {[%clk 0:02:52]} 15. Nf3 {[%clk 0:01:57]}  Ra4 {[%clk 0:02:30]} 16. O-O {[%clk 0:01:51]}  Qc7 {[%clk 0:02:22]} 17. Re1 {[%clk 0:01:24]}  Rfa8 {[%clk 0:02:16]} 18. g4 {[%clk 0:01:25]}  cxd4 {[%clk 0:02:11]} 19. cxd4 {[%clk 0:01:21]}  Nb4 {[%clk 0:02:09]} 20. Qb5 {[%clk 0:01:09]}  Nxc2 {[%clk 0:02:03]} 21. Re2 {[%clk 0:01:10]}  Nxd4 {[%clk 0:01:59]} 22. Nxd4 {[%clk 0:01:08]}  Rxd4 {[%clk 0:02:00]} 23. Be3 {[%clk 0:00:38]}  Rxg4+ {[%clk 0:02:00]} 24. Kf1 {[%clk 0:00:39]}  d4 {[%clk 0:01:54]} 25. f3 {[%clk 0:00:16]}  Rh4 {[%clk 0:01:54]} 26. Bg1 {[%clk 0:00:13]}  Nd5 {[%clk 0:01:47]} 27. Rd2 {[%clk 0:00:07]}  Rxh5 {[%clk 0:01:40]} 28. Bxd4 {[%clk 0:00:05]}  Rh1+ {[%clk 0:01:18]} 29. Kf2 {[%clk 0:00:05]}  Rxb1 {[%clk 0:01:13]} 30. Qxb1 {[%clk 0:00:06]}  Qc4 {[%clk 0:01:09]} 31. Qb2 {[%clk 0:00:04]}  b5 {[%clk 0:01:06]} 32. Rc2 {[%clk 0:00:04]}  Qd3 {[%clk 0:01:03]} 33. Rd2 {[%clk 0:00:05]}  Qc4 {[%clk 0:01:00]} 34. Rc2 {[%clk 0:00:05]}  Qb4 {[%clk 0:00:59]} 35. Qxb4 {[%clk 0:00:03]}  Nxb4 {[%clk 0:01:00]} 36. Rc7 {[%clk 0:00:02]}  Rd8 {[%clk 0:00:47]} 37. Bb6 {[%clk 0:00:01]}  Nd5 {[%clk 0:00:47]} 38. Rb7 {[%clk 0:00:02]}  Nxb6 {[%clk 0:00:46]} 39. Rxb6 {[%clk 0:00:03]}  Rd5 {[%clk 0:00:46]} 40. f4 {[%clk 0:00:04]}  g5 {[%clk 0:00:45]} 41. Ke3 {[%clk 0:00:05]}  gxf4+ {[%clk 0:00:45]} 42. Kxf4 {[%clk 0:00:06]}  Kg7 {[%clk 0:00:45]} 43. Ke4 {[%clk 0:00:06]}  Kg6 {[%clk 0:00:45]} 44. Rb8 {[%clk 0:00:07]}  Kg7 {[%clk 0:00:45]} 45. Rb6 {[%clk 0:00:08]}  h5 {[%clk 0:00:45]} 46. Rb7 {[%clk 0:00:07]}  h4 {[%clk 0:00:45]} 47. Ra7 {[%clk 0:00:07]}  Rd1 {[%clk 0:00:39]} 48. Ra3 {[%clk 0:00:05]}  Rh1 {[%clk 0:00:37]} 49. Rb3 {[%clk 0:00:05]}  h3 {[%clk 0:00:37]} 50. Kf3 {[%clk 0:00:03]}  Rg1 {[%clk 0:00:37]} 51. Rb2 {[%clk 0:00:02]}  b4 {[%clk 0:00:34]} 0-1


[Site "https://www.chess.com"]

[Event "Titled Tuesday Blitz June 8 2021"]
[White "Nakamura, Hikaru"]
[Black "Andreikin, Dmitry"]
[WhiteFideId "2016192"]
[BlackFideId "4158814"]
[WhiteElo "2900"]
[BlackElo "2782"]
[Result "1-0"]
[Round "10"]
[TimeControl "180+1"]
[Date "2021.06.08"]
[WhiteClock "0:00:10"]
[BlackClock "0:00:01"]

1. e4 {[%clk 0:03:00]}  c5 {[%clk 0:02:58]} 2. Nf3 {[%clk 0:03:00]}  e6 {[%clk 0:02:59]} 3. d4 {[%clk 0:03:00]}  cxd4 {[%clk 0:02:59]} 4. Nxd4 {[%clk 0:03:01]}  Nc6 {[%clk 0:03:00]} 5. Nc3 {[%clk 0:02:56]}  a6 {[%clk 0:03:00]} 6. Be2 {[%clk 0:02:46]}  Qc7 {[%clk 0:02:59]} 7. Nxc6 {[%clk 0:02:44]}  dxc6 {[%clk 0:02:54]} 8. Qd3 {[%clk 0:02:39]}  Nf6 {[%clk 0:02:51]} 9. Qg3 {[%clk 0:02:33]}  Qxg3 {[%clk 0:02:47]} 10. hxg3 {[%clk 0:02:34]}  e5 {[%clk 0:02:46]} 11. Be3 {[%clk 0:02:34]}  Be6 {[%clk 0:02:34]} 12. f3 {[%clk 0:02:30]}  Nd7 {[%clk 0:02:28]} 13. Rd1 {[%clk 0:02:27]}  b5 {[%clk 0:02:20]} 14. a3 {[%clk 0:02:17]}  a5 {[%clk 0:02:09]} 15. Kf2 {[%clk 0:02:10]}  b4 {[%clk 0:01:56]} 16. Nb1 {[%clk 0:02:07]}  Bc5 {[%clk 0:01:51]} 17. axb4 {[%clk 0:01:50]}  axb4 {[%clk 0:01:50]} 18. Nd2 {[%clk 0:01:49]}  Ke7 {[%clk 0:01:37]} 19. Ra1 {[%clk 0:01:47]}  h6 {[%clk 0:01:19]} 20. b3 {[%clk 0:01:38]}  Bxe3+ {[%clk 0:01:12]} 21. Kxe3 {[%clk 0:01:38]}  Nb6 {[%clk 0:01:12]} 22. f4 {[%clk 0:01:31]}  f6 {[%clk 0:01:12]} 23. Nf3 {[%clk 0:01:28]}  Nd7 {[%clk 0:01:05]} 24. Nh4 {[%clk 0:01:28]}  Rhb8 {[%clk 0:00:57]} 25. Rhd1 {[%clk 0:01:25]}  Ra3 {[%clk 0:00:43]} 26. Rac1 {[%clk 0:01:05]}  Nf8 {[%clk 0:00:34]} 27. Rd3 {[%clk 0:00:55]}  Rd8 {[%clk 0:00:29]} 28. Nf3 {[%clk 0:00:47]}  Rxd3+ {[%clk 0:00:29]} 29. Bxd3 {[%clk 0:00:48]}  Nd7 {[%clk 0:00:29]} 30. Rf1 {[%clk 0:00:46]}  c5 {[%clk 0:00:28]} 31. Rb1 {[%clk 0:00:41]}  Ra2 {[%clk 0:00:16]} 32. Rd1 {[%clk 0:00:32]}  Bg4 {[%clk 0:00:12]} 33. Rh1 {[%clk 0:00:29]}  Be6 {[%clk 0:00:11]} 34. Rc1 {[%clk 0:00:28]}  Bg4 {[%clk 0:00:09]} 35. Bb5 {[%clk 0:00:26]}  Bxf3 {[%clk 0:00:07]} 36. gxf3 {[%clk 0:00:27]}  Nb6 {[%clk 0:00:07]} 37. fxe5 {[%clk 0:00:25]}  fxe5 {[%clk 0:00:08]} 38. f4 {[%clk 0:00:26]}  Ra5 {[%clk 0:00:06]} 39. Be2 {[%clk 0:00:24]}  c4 {[%clk 0:00:06]} 40. fxe5 {[%clk 0:00:18]}  Rxe5 {[%clk 0:00:06]} 41. Ra1 {[%clk 0:00:16]}  cxb3 {[%clk 0:00:05]} 42. cxb3 {[%clk 0:00:17]}  Rg5 {[%clk 0:00:04]} 43. g4 {[%clk 0:00:17]}  Nd7 {[%clk 0:00:04]} 44. Ra7 {[%clk 0:00:17]}  Kd6 {[%clk 0:00:04]} 45. Ra6+ {[%clk 0:00:17]}  Ke7 {[%clk 0:00:03]} 46. Ra4 {[%clk 0:00:17]}  Ne5 {[%clk 0:00:03]} 47. Kf4 {[%clk 0:00:16]}  Ng6+ {[%clk 0:00:03]} 48. Kg3 {[%clk 0:00:16]}  h5 {[%clk 0:00:03]} 49. Rxb4 {[%clk 0:00:16]}  hxg4 {[%clk 0:00:03]} 50. Rb7+ {[%clk 0:00:17]}  Kf6 {[%clk 0:00:03]} 51. Rb6+ {[%clk 0:00:17]}  Ke7 {[%clk 0:00:04]} 52. b4 {[%clk 0:00:17]}  Ne5 {[%clk 0:00:04]} 53. b5 {[%clk 0:00:15]}  Rg6 {[%clk 0:00:03]} 54. Rxg6 {[%clk 0:00:13]}  Nxg6 {[%clk 0:00:04]} 55. Kxg4 {[%clk 0:00:14]}  Kd6 {[%clk 0:00:04]} 56. Kf5 {[%clk 0:00:14]}  Ne7+ {[%clk 0:00:04]} 57. Kf4 {[%clk 0:00:14]}  Ng6+ {[%clk 0:00:04]} 58. Kg5 {[%clk 0:00:13]}  Ne7 {[%clk 0:00:04]} 59. Kg4 {[%clk 0:00:12]}  Ke5 {[%clk 0:00:04]} 60. b6 {[%clk 0:00:11]}  Nc6 {[%clk 0:00:02]} 61. Bb5 {[%clk 0:00:10]}  Nb8 {[%clk 0:00:01]} 62. Kf3 {[%clk 0:00:10]} 1-0


[Site "https://www.chess.com"]

[Event "Titled Tuesday Blitz June 8 2021"]
[White "Narayanan.S.L"]
[Black "Gavrilescu, David"]
[WhiteFideId "5058422"]
[BlackFideId "1227190"]
[WhiteElo "2617"]
[BlackElo "2370"]
[Result "1/2-1/2"]
[Round "10"]
[TimeControl "180+1"]
[Date "2021.06.08"]
[WhiteClock "0:00:09"]
[BlackClock "0:00:18"]

1. c4 {[%clk 0:02:58]}  e6 {[%clk 0:02:51]} 2. g3 {[%clk 0:02:57]}  d5 {[%clk 0:02:51]} 3. Bg2 {[%clk 0:02:58]}  d4 {[%clk 0:02:51]} 4. b4 {[%clk 0:02:56]}  a5 {[%clk 0:02:46]} 5. bxa5 {[%clk 0:02:53]}  Nc6 {[%clk 0:02:42]} 6. Nf3 {[%clk 0:02:52]}  Nf6 {[%clk 0:02:41]} 7. O-O {[%clk 0:02:52]}  Bc5 {[%clk 0:02:36]} 8. d3 {[%clk 0:02:52]}  O-O {[%clk 0:02:36]} 9. Nbd2 {[%clk 0:02:49]}  Nxa5 {[%clk 0:02:32]} 10. Bb2 {[%clk 0:02:44]}  Re8 {[%clk 0:02:26]} 11. Ne5 {[%clk 0:02:31]}  Qd6 {[%clk 0:02:15]} 12. f4 {[%clk 0:02:26]}  Ba3 {[%clk 0:02:06]} 13. Bxa3 {[%clk 0:02:18]}  Qxa3 {[%clk 0:02:07]} 14. Nb3 {[%clk 0:02:19]}  c5 {[%clk 0:02:00]} 15. Qc1 {[%clk 0:02:07]}  Nxb3 {[%clk 0:01:17]} 16. axb3 {[%clk 0:02:05]}  Qxc1 {[%clk 0:01:18]} 17. Rfxc1 {[%clk 0:02:05]}  Rb8 {[%clk 0:01:18]} 18. Ra7 {[%clk 0:02:04]}  Kf8 {[%clk 0:01:13]} 19. Rb1 {[%clk 0:02:03]}  Nd7 {[%clk 0:00:56]} 20. b4 {[%clk 0:02:02]}  Nxe5 {[%clk 0:00:52]} 21. fxe5 {[%clk 0:02:02]}  cxb4 {[%clk 0:00:53]} 22. Rxb4 {[%clk 0:02:03]}  Re7 {[%clk 0:00:53]} 23. c5 {[%clk 0:01:51]}  b5 {[%clk 0:00:51]} 24. cxb6 {[%clk 0:00:46]}  Rxb6 {[%clk 0:00:50]} 25. Raa4 {[%clk 0:00:45]}  Rxb4 {[%clk 0:00:44]} 26. Rxb4 {[%clk 0:00:46]}  Rd7 {[%clk 0:00:45]} 27. Bc6 {[%clk 0:00:44]}  Rc7 {[%clk 0:00:44]} 28. Ba4 {[%clk 0:00:44]}  Ke7 {[%clk 0:00:36]} 29. Rxd4 {[%clk 0:00:45]}  Rc5 {[%clk 0:00:37]} 30. Rc4 {[%clk 0:00:45]}  Rxc4 {[%clk 0:00:32]} 31. dxc4 {[%clk 0:00:46]}  Ba6 {[%clk 0:00:29]} 32. c5 {[%clk 0:00:43]}  Bxe2 {[%clk 0:00:28]} 33. Kf2 {[%clk 0:00:44]}  Bc4 {[%clk 0:00:26]} 34. Ke3 {[%clk 0:00:44]}  f6 {[%clk 0:00:27]} 35. Kd4 {[%clk 0:00:44]}  Bd5 {[%clk 0:00:27]} 36. exf6+ {[%clk 0:00:39]}  gxf6 {[%clk 0:00:27]} 37. g4 {[%clk 0:00:39]}  h6 {[%clk 0:00:26]} 38. Bd1 {[%clk 0:00:36]}  Kd8 {[%clk 0:00:26]} 39. Be2 {[%clk 0:00:34]}  Kc7 {[%clk 0:00:26]} 40. Bc4 {[%clk 0:00:24]}  Bxc4 {[%clk 0:00:22]} 41. Kxc4 {[%clk 0:00:24]}  Kc6 {[%clk 0:00:22]} 42. Kd4 {[%clk 0:00:23]}  Kb5 {[%clk 0:00:20]} 43. h3 {[%clk 0:00:22]}  Kc6 {[%clk 0:00:20]} 44. Kc4 {[%clk 0:00:23]}  e5 {[%clk 0:00:20]} 45. h4 {[%clk 0:00:23]}  Kc7 {[%clk 0:00:16]} 46. Kd5 {[%clk 0:00:20]}  Kd7 {[%clk 0:00:16]} 47. c6+ {[%clk 0:00:16]}  Kc7 {[%clk 0:00:17]} 48. Kc5 {[%clk 0:00:16]}  Kc8 {[%clk 0:00:13]} 49. Kc4 {[%clk 0:00:15]}  Kc7 {[%clk 0:00:14]} 50. Kd5 {[%clk 0:00:15]}  Kc8 {[%clk 0:00:14]} 51. h5 {[%clk 0:00:13]}  Kc7 {[%clk 0:00:14]} 52. Kc5 {[%clk 0:00:14]}  Kc8 {[%clk 0:00:15]} 53. Kc4 {[%clk 0:00:15]}  Kc7 {[%clk 0:00:15]} 54. Kd5 {[%clk 0:00:15]}  Kc8 {[%clk 0:00:16]} 55. Ke4 {[%clk 0:00:10]}  Kc7 {[%clk 0:00:16]} 56. Kd5 {[%clk 0:00:09]}  Kc8 {[%clk 0:00:16]} 57. Kc4 {[%clk 0:00:09]}  Kc7 {[%clk 0:00:17]} 58. Kc5 {[%clk 0:00:09]}  Kc8 {[%clk 0:00:17]} 59. Kd5 {[%clk 0:00:09]}  Kc7 {[%clk 0:00:18]} 60. Kc5 {[%clk 0:00:09]} 1/2-1/2


[Site "https://www.chess.com"]

[Event "Titled Tuesday Blitz June 8 2021"]
[White "Sanal, Vahap"]
[Black "Goltsev, Dmitry"]
[WhiteFideId "6300545"]
[BlackFideId "24176710"]
[WhiteElo "2507"]
[BlackElo "2366"]
[Result "0-1"]
[Round "10"]
[TimeControl "180+1"]
[Date "2021.06.08"]
[WhiteClock "0:00:05"]
[BlackClock "0:00:09"]

1. e4 {[%clk 0:03:00]}  Nf6 {[%clk 0:02:52]} 2. e5 {[%clk 0:02:59]}  Nd5 {[%clk 0:02:53]} 3. d4 {[%clk 0:03:00]}  d6 {[%clk 0:02:53]} 4. c4 {[%clk 0:03:00]}  Nb6 {[%clk 0:02:53]} 5. f4 {[%clk 0:03:01]}  dxe5 {[%clk 0:02:51]} 6. fxe5 {[%clk 0:03:00]}  Nc6 {[%clk 0:02:52]} 7. Be3 {[%clk 0:02:59]}  Bf5 {[%clk 0:02:48]} 8. Nc3 {[%clk 0:02:58]}  e6 {[%clk 0:02:48]} 9. Be2 {[%clk 0:02:57]}  Bb4 {[%clk 0:02:47]} 10. Nf3 {[%clk 0:02:57]}  h6 {[%clk 0:02:45]} 11. O-O {[%clk 0:02:57]}  Bxc3 {[%clk 0:02:38]} 12. bxc3 {[%clk 0:02:57]}  Ne7 {[%clk 0:02:39]} 13. a4 {[%clk 0:02:53]}  a5 {[%clk 0:02:38]} 14. Qd2 {[%clk 0:02:49]}  Qd7 {[%clk 0:02:37]} 15. c5 {[%clk 0:02:43]}  Nbd5 {[%clk 0:02:33]} 16. Bf2 {[%clk 0:02:43]}  O-O {[%clk 0:02:18]} 17. Bb5 {[%clk 0:02:36]}  c6 {[%clk 0:02:17]} 18. Be2 {[%clk 0:02:35]}  Ng6 {[%clk 0:02:15]} 19. Bg3 {[%clk 0:02:32]}  Rab8 {[%clk 0:01:56]} 20. Nh4 {[%clk 0:02:17]}  Nxh4 {[%clk 0:01:48]} 21. Bxh4 {[%clk 0:02:17]}  b6 {[%clk 0:01:45]} 22. cxb6 {[%clk 0:02:11]}  Rxb6 {[%clk 0:01:45]} 23. Ra3 {[%clk 0:01:49]}  Rfb8 {[%clk 0:01:45]} 24. Ra2 {[%clk 0:01:21]}  Rb3 {[%clk 0:01:37]} 25. Rc1 {[%clk 0:01:16]}  Qb7 {[%clk 0:01:28]} 26. h3 {[%clk 0:01:08]}  Rb2 {[%clk 0:01:27]} 27. Rxb2 {[%clk 0:01:07]}  Qxb2 {[%clk 0:01:27]} 28. Qxb2 {[%clk 0:01:02]}  Rxb2 {[%clk 0:01:28]} 29. Bf1 {[%clk 0:01:03]}  Bc2 {[%clk 0:01:03]} 30. Bd8 {[%clk 0:00:59]}  Nxc3 {[%clk 0:00:55]} 31. Bxa5 {[%clk 0:00:58]}  Nxa4 {[%clk 0:00:53]} 32. Kh2 {[%clk 0:00:39]}  Be4 {[%clk 0:00:51]} 33. Ra1 {[%clk 0:00:32]}  Nb6 {[%clk 0:00:47]} 34. Bxb6 {[%clk 0:00:31]}  Rxb6 {[%clk 0:00:48]} 35. Ra8+ {[%clk 0:00:31]}  Kh7 {[%clk 0:00:47]} 36. Ra7 {[%clk 0:00:30]}  Kg6 {[%clk 0:00:45]} 37. Kg3 {[%clk 0:00:29]}  Rb4 {[%clk 0:00:44]} 38. Rd7 {[%clk 0:00:27]}  Bd5 {[%clk 0:00:41]} 39. Bd3+ {[%clk 0:00:27]}  f5 {[%clk 0:00:40]} 40. exf6+ {[%clk 0:00:24]}  Kxf6 {[%clk 0:00:41]} 41. Be2 {[%clk 0:00:17]}  Rxd4 {[%clk 0:00:39]} 42. Bh5 {[%clk 0:00:18]}  g6 {[%clk 0:00:38]} 43. Be2 {[%clk 0:00:18]}  c5 {[%clk 0:00:37]} 44. Rh7 {[%clk 0:00:19]}  h5 {[%clk 0:00:36]} 45. Kf2 {[%clk 0:00:19]}  c4 {[%clk 0:00:35]} 46. Rc7 {[%clk 0:00:20]}  Rd2 {[%clk 0:00:32]} 47. Ke3 {[%clk 0:00:19]}  Rc2 {[%clk 0:00:29]} 48. g4 {[%clk 0:00:20]}  h4 {[%clk 0:00:28]} 49. Bf1 {[%clk 0:00:16]}  Rc1 {[%clk 0:00:22]} 50. Be2 {[%clk 0:00:13]}  Rh1 {[%clk 0:00:18]} 51. Bxc4 {[%clk 0:00:05]}  Rc1 {[%clk 0:00:09]} 0-1


[Site "https://www.chess.com"]

[Event "Titled Tuesday Blitz June 8 2021"]
[White "Sawlin, Leonid"]
[Black "Samadov, Read"]
[WhiteFideId "4689542"]
[BlackFideId "13417444"]
[WhiteElo "2412"]
[BlackElo "2084"]
[Result "0-1"]
[Round "10"]
[TimeControl "180+1"]
[Date "2021.06.08"]
[WhiteClock "0:01:44"]
[BlackClock "0:01:46"]

1. e4 {[%clk 0:02:59]}  c5 {[%clk 0:02:59]} 2. Nf3 {[%clk 0:02:55]}  d6 {[%clk 0:03:00]} 3. d4 {[%clk 0:02:55]}  cxd4 {[%clk 0:03:00]} 4. Nxd4 {[%clk 0:02:56]}  Nf6 {[%clk 0:03:00]} 5. Nc3 {[%clk 0:02:57]}  a6 {[%clk 0:02:59]} 6. Bg5 {[%clk 0:02:57]}  Nbd7 {[%clk 0:02:58]} 7. f4 {[%clk 0:02:57]}  g6 {[%clk 0:02:58]} 8. Qe2 {[%clk 0:02:55]}  e5 {[%clk 0:02:50]} 9. Nf3 {[%clk 0:02:51]}  Bg7 {[%clk 0:02:49]} 10. O-O-O {[%clk 0:02:47]}  Qb6 {[%clk 0:02:36]} 11. Bxf6 {[%clk 0:02:44]}  Nxf6 {[%clk 0:02:34]} 12. f5 {[%clk 0:02:45]}  gxf5 {[%clk 0:02:31]} 13. exf5 {[%clk 0:02:37]}  Bxf5 {[%clk 0:02:27]} 14. Nxe5 {[%clk 0:02:33]}  dxe5 {[%clk 0:02:24]} 15. Qxe5+ {[%clk 0:02:34]}  Be6 {[%clk 0:02:21]} 16. Bc4 {[%clk 0:02:32]}  O-O {[%clk 0:02:17]} 17. Bd3 {[%clk 0:02:28]}  Rfd8 {[%clk 0:02:04]} 18. Rhf1 {[%clk 0:02:27]}  Nd5 {[%clk 0:01:56]} 19. Nxd5 {[%clk 0:02:02]}  Rxd5 {[%clk 0:01:51]} 20. Qe4 {[%clk 0:01:44]}  Qxb2+ {[%clk 0:01:49]} 21. Kd2 {[%clk 0:01:44]}  Bc3+ {[%clk 0:01:47]} 22. Ke2 {[%clk 0:01:45]}  Re5 {[%clk 0:01:47]} 23. Rf3 {[%clk 0:01:44]}  Rxe4+ {[%clk 0:01:47]} 24. Bxe4 {[%clk 0:01:45]}  Bc4+ {[%clk 0:01:46]} 25. Kf2 {[%clk 0:01:45]}  Qb6+ {[%clk 0:01:46]} 26. Kg3 {[%clk 0:01:43]}  Be5+ {[%clk 0:01:46]} 27. Kh3 {[%clk 0:01:43]}  Qh6+ {[%clk 0:01:46]} 28. Kg4 {[%clk 0:01:43]}  Be6+ {[%clk 0:01:46]} 29. Bf5 {[%clk 0:01:44]}  Qg6+ {[%clk 0:01:46]} 30. Kh4 {[%clk 0:01:44]}  Bxf5 {[%clk 0:01:46]} 31. Rd5 {[%clk 0:01:44]}  Qg4# {[%clk 0:01:46]} 0-1


[Site "https://www.chess.com"]

[Event "Titled Tuesday Blitz June 8 2021"]
[White "Svidler, Peter"]
[Black "Tabatabaei, M. Amin"]
[WhiteFideId "4102142"]
[BlackFideId "12521213"]
[WhiteElo "2754"]
[BlackElo "2555"]
[Result "0-1"]
[Round "10"]
[TimeControl "180+1"]
[Date "2021.06.08"]
[WhiteClock "0:00:15"]
[BlackClock "0:00:47"]

1. e4 {[%clk 0:03:00]}  c5 {[%clk 0:02:59]} 2. Nf3 {[%clk 0:03:00]}  e6 {[%clk 0:03:00]} 3. d4 {[%clk 0:03:00]}  cxd4 {[%clk 0:03:01]} 4. Nxd4 {[%clk 0:03:00]}  Nc6 {[%clk 0:03:02]} 5. Nc3 {[%clk 0:03:00]}  Qc7 {[%clk 0:03:02]} 6. Be2 {[%clk 0:02:55]}  Nf6 {[%clk 0:03:01]} 7. O-O {[%clk 0:02:55]}  Be7 {[%clk 0:03:00]} 8. Be3 {[%clk 0:02:49]}  O-O {[%clk 0:03:00]} 9. f4 {[%clk 0:02:49]}  d6 {[%clk 0:03:01]} 10. Kh1 {[%clk 0:02:47]}  a6 {[%clk 0:03:00]} 11. a4 {[%clk 0:02:46]}  Bd7 {[%clk 0:02:50]} 12. Nb3 {[%clk 0:02:44]}  b6 {[%clk 0:02:45]} 13. g4 {[%clk 0:02:44]}  Bc8 {[%clk 0:02:40]} 14. g5 {[%clk 0:02:44]}  Nd7 {[%clk 0:02:41]} 15. Bf3 {[%clk 0:02:44]}  Bb7 {[%clk 0:02:41]} 16. Qd2 {[%clk 0:02:42]}  Nb4 {[%clk 0:02:38]} 17. Rad1 {[%clk 0:02:38]}  Rac8 {[%clk 0:02:33]} 18. Bg2 {[%clk 0:02:37]}  Rfe8 {[%clk 0:02:33]} 19. f5 {[%clk 0:02:26]}  Ne5 {[%clk 0:02:33]} 20. Qe2 {[%clk 0:02:03]}  Qc4 {[%clk 0:02:28]} 21. Nd4 {[%clk 0:01:20]}  Qxe2 {[%clk 0:02:22]} 22. Ndxe2 {[%clk 0:01:16]}  Nc4 {[%clk 0:02:19]} 23. fxe6 {[%clk 0:01:10]}  fxe6 {[%clk 0:02:17]} 24. Bc1 {[%clk 0:01:09]}  Nxc2 {[%clk 0:02:15]} 25. Bh3 {[%clk 0:01:06]}  Bf8 {[%clk 0:02:14]} 26. Nf4 {[%clk 0:01:05]}  N2e3 {[%clk 0:02:11]} 27. Bxe3 {[%clk 0:00:57]}  Nxe3 {[%clk 0:02:11]} 28. Bxe6+ {[%clk 0:00:57]}  Rxe6 {[%clk 0:01:36]} 29. Nxe6 {[%clk 0:00:58]}  Be7 {[%clk 0:01:37]} 30. Nd5 {[%clk 0:00:49]}  Bxd5 {[%clk 0:01:33]} 31. exd5 {[%clk 0:00:49]}  Nxf1 {[%clk 0:01:23]} 32. Rxf1 {[%clk 0:00:49]}  Rc2 {[%clk 0:01:24]} 33. b3 {[%clk 0:00:44]}  Rd2 {[%clk 0:01:21]} 34. Rc1 {[%clk 0:00:43]}  Rxd5 {[%clk 0:01:21]} 35. Rc7 {[%clk 0:00:42]}  Kf7 {[%clk 0:01:20]} 36. Nd8+ {[%clk 0:00:42]}  Ke8 {[%clk 0:01:19]} 37. Nc6 {[%clk 0:00:42]}  Bxg5 {[%clk 0:01:12]} 38. Rxg7 {[%clk 0:00:41]}  h6 {[%clk 0:01:12]} 39. Nb4 {[%clk 0:00:39]}  Rd1+ {[%clk 0:00:56]} 40. Kg2 {[%clk 0:00:39]}  a5 {[%clk 0:00:56]} 41. Nc6 {[%clk 0:00:37]}  d5 {[%clk 0:00:57]} 42. Kf3 {[%clk 0:00:31]}  d4 {[%clk 0:00:51]} 43. Ke4 {[%clk 0:00:25]}  d3 {[%clk 0:00:51]} 44. h4 {[%clk 0:00:18]}  d2 {[%clk 0:00:50]} 45. Kd3 {[%clk 0:00:15]}  Re1 {[%clk 0:00:47]} 0-1


[Site "https://www.chess.com"]